Cogmind - Beta 15 @@@ ROGUE MODE // 2025.07.28 @ 18:38:40 Player: Saturn Result: Destroyed by 0D-MBG(R) with Subdweller Machine Gun Performance ------------- Evolutions (0) 0 Regions Visited (2) 400 Robots Destroyed (18) 90 Value Destroyed (421) 421 Prototype IDs (0) 0 Alien Tech Used (0) 0 Bonus (0) 0 TOTAL SCORE: 911 Bonus ------- None Cogmind --------- Core Integrity 0/250 Matter 272/300 Energy 125/125 System Corruption 0% Temperature Cool (0) Movement Treading (160) Location -10/Subcaves Parts ------- > --- POWER (1) -------- Light Ion Engine > --- PROPULSION (2) --- Light Treads > --- UTILITY (2) ------ Small Storage Unit Light Armor Plating > --- WEAPON (2) ------- Light Assault Rifle Grenade Launcher > --- INVENTORY (8) ---- Aluminum Leg Aluminum Leg Aluminum Leg Aluminum Leg Sensor Array Sensor Array Peak State ------------ > --- POWER ------------ Ion Engine > --- PROPULSION ------- Aluminum Leg Aluminum Leg > --- UTILITY ---------- Improved Heat Sink Small Storage Unit > --- WEAPON ----------- Medium Laser Assault Rifle > --- INVENTORY -------- Ion Engine Light Ion Engine Light Treads Light Treads Aluminum Leg Aluminum Leg Small Laser Datajack [Rating: 9] Favorites ----------- Power Ion Engine Engine Ion Engine Propulsion Aluminum Leg Treads Light Treads Leg Aluminum Leg Utility Small Storage Unit Device Sensor Array Storage Small Storage Unit Protection Light Armor Plating Weapon Medium Laser Energy Gun Medium Laser Ballistic Gun Assault Rifle Launcher Grenade Launcher Build | -11 -10 -10 ------- Run | Yrd Mat Sub Slots Evolved . | . . . Power . | . . . Propulsion . | . . . Utility . | . . . Weapon . | . . . Parts Attached 21 | 6 12 3 Power 4 | 1 2 1 Engine 4 | 1 2 1 Core . | . . . Reactor . | . . . Propulsion 6 | 2 4 . Treads 2 | . 2 . Leg 4 | 2 2 . Wheel . | . . . Hover . | . . . Flight . | . . . Utility 6 | 1 4 1 Device 3 | . 3 . Storage 2 | 1 1 . Processor . | . . . Hackware . | . . . Protection 1 | . . 1 Artifact . | . . . Weapon 5 | 2 2 1 Energy Gun 2 | 1 1 . Energy Cannon . | . . . Ballistic Gun 2 | 1 1 . Ballistic Cannon . | . . . Launcher 1 | . . 1 Special Weapon . | . . . Impact Weapon . | . . . Slashing Weapon . | . . . Piercing Weapon . | . . . Special Melee Weapon . | . . . Unidentified Prototypes . | . . . Parts Lost 4 | . 2 2 Power 1 | . 1 . Propulsion 1 | . . 1 Utility . | . . . Weapon 2 | . 1 1 Highest Loss Streak 2 | . 1 2 To Critical Strikes . | . . . Average Backups 7 | 1 7 6 Power 1 | . 1 . Propulsion 3 | . 3 4 Utility 1 | . 1 2 Weapon . | . . . Tool/Special . | . . . Unused Backups 4 | . 2 2 Power . | . . . Propulsion 2 | . 1 1 Utility 1 | . . 1 Weapon . | . . . Tool/Special 1 | . 1 . Average Slot Usage (%) 96 | . 96 98 Engine 13 | . 13 14 Treads 14 | . 11 26 Leg 13 | . 16 . Device 11 | . 11 12 Storage 14 | . 14 14 Energy Gun 15 | . 15 12 Ballistic Gun 12 | . 11 14 Peak Build Rating 9 | 6 9 7 Average Rating 7 | 4 7 6 On Entrance 4 | . 6 6 Naked Turns . | . . . Heaviest Build 15 | 14 15 12 Greatest Support 20 | 20 20 20 Greatest Overweight (x) 3 | 2 . 3 Average Overweight (x) . | . . . Largest Inventory Capacity 8 | 8 8 8 Average Capacity 7 | 7 8 8 Most Carried 8 | 4 8 8 Average Carried 7 | 1 7 6 Final Capacity 8 | 8 8 8 Final Carried 8 | 4 8 6 Class Distribution -------------------- 100% | Mutant Dominant Class ---------------- Mutant | -10/Materials Mutant | -10/Subcaves Resources | -11 -10 -10 ----------- Run | Yrd Mat Sub Matter Collected 550 | 190 360 . Remotely . | . . . Salvage Created 585 | . 549 36 Parts 29 | . 24 5 Haulers Intercepted . | . . . Recyclers Shooed 3 | . 3 . Parts Field Recycled . | . . . Retrieved Matter . | . . . Parts Self-Destructed . | . . . Prevented . | . . . Kills | -11 -10 -10 ------- Run | Yrd Mat Sub Combat Hostiles Destroyed 15 | . 14 1 Guns 15 | . 14 1 Classes Destroyed 6 | . 5 1 Worker 1 | . 1 . Recycler 1 | . 1 . Operator 1 | . 1 . Swarmer 6 | . 6 . Grunt 8 | . 8 . Subdweller 1 | . . 1 Best Kill Streak 6 | . 6 1 Combat Bots Only 6 | . 6 1 Max Kills in Single Turn 1 | . 1 1 Gunslinging . | . . . Exploded . | . . . Melee . | . . . Uniques/NPCs Destroyed . | . . . Combat | -11 -10 -10 -------- Run | Yrd Mat Sub Hostile Shots Fired 129 | . 110 19 Missed 36 | . 29 7 Hits 93 | . 81 12 Projectile 93 | . 81 12 Critical Strikes 1 | . . 1 Damage Taken 1144 | . 896 248 Core 264 | . 222 42 Absorbed by Shields . | . . . Core Remaining (%) 100 | 100 . . Volleys Fired 85 | . 72 13 Largest 2 | . 2 1 Hottest 70 | . 70 50 Shots Fired 148 | . 135 13 Gun 148 | . 135 13 Cannon . | . . . Launcher . | . . . Special . | . . . Kinetic 71 | . 63 8 Thermal 77 | . 72 5 Explosive . | . . . Electromagnetic . | . . . Robot Hit Streak 19 | . 12 19 Robot Miss Streak 4 | . 4 . Penetration Max . | . . . Secondary Targets 3 | . 3 . Max Gunslinging Chain 1 | . 1 . Shots Hit Robots 103 | . 90 13 Core Hits 34 | . 32 2 Critical Kills . | . . . Critical Parts Destroyed 1 | . 1 . Critical Strikes 9 | . 7 2 Burn 8 | . 6 2 Destroy 1 | . 1 . Melee Attacks . | . . . Impact . | . . . Slashing . | . . . Piercing . | . . . Sneak Attacks . | . . . Combat Hostiles . | . . . Follow-up Attacks . | . . . Damage Inflicted 1220 | . 1094 126 Guns 1205 | . 1079 126 Cannons . | . . . Explosions . | . . . Melee . | . . . Ramming 15 | . 15 . Kinetic 539 | . 474 65 Thermal 666 | . 605 61 Explosive . | . . . Electromagnetic . | . . . Impact . | . . . Slashing . | . . . Piercing . | . . . Highest Corruption . | . . . Average Corruption . | . . . Corruption Purged . | . . . Corruption Blocked . | . . . Overload Shots . | . . . Overflow Damage . | . . . Projectiles . | . . . Explosions . | . . . Melee . | . . . Knockbacks . | . . . Impact . | . . . Kinetic . | . . . Secondary . | . . . Self-Inflicted Damage . | . . . Shots . | . . . Rammed 3 | . 3 . Targets Rammed 5 | . 5 . Kicked 2 | . 2 . Crushed . | . . . Highest Temperature 280 | . 280 . Average Temperature 88 | . 88 . Received Heat Transfer 465 | . 411 54 Effects 1 | . 1 . Interference 1 | . 1 . Siege Activations . | . . . Martial Activations . | . . . Shielding Activations . | . . . Robots Disrupted . | . . . Combat Hostiles . | . . . Robots Corrupted . | . . . Combat Hostiles . | . . . Parts Fried . | . . . Impact Corruptions . | . . . Robots Melted . | . . . Combat Hostiles . | . . . Parts Melted 4 | . 3 1 Heat Transferred 2553 | . 2220 333 Parts Sabotaged . | . . . Parts Stolen . | . . . Parts Stripped . | . . . Power Chain Reactions . | . . . Alert | -11 -10 -10 ------- Run | Yrd Mat Sub Maximum Alert Level . | . . . Low Security (%) 100 | 100 100 . Level 1 . | . . . Level 2 . | . . . Level 3 . | . . . Level 4 . | . . . Level 5 . | . . . High Security . | . . . Max Security . | . . . Peak Influence 163 | . 163 . Initial . | . . . Average 54 | . 57 . Influence Increases 420 | . 420 . Destroy 0b10 Robot/C 280 | . 280 . Destroy 0b10 Robot/NC 15 | . 15 . Destroy Leader 60 | . 60 . Successful Hack 4 | . 4 . Destroy Structure 1 | . 1 . Lose Combat Pursuer 60 | . 60 . Influence Decreases 420 | . 341 79 Entered New Map 39 | . . 39 Time Decay 361 | . 321 40 Lost Part 20 | . 20 . Squads Dispatched 3 | . 3 . Investigation 1 | . 1 . Extermination . | . . . Reinforcement 2 | . 2 . Assault . | . . . Garrison . | . . . Intercept . | . . . Searches Triggered . | . . . Construction Impeded . | . . . Haulers Reinforced . | . . . Active Scanning Responses . | . . . Cargo Convoy Interrupts . | . . . Stealth | -11 -10 -10 --------- Run | Yrd Mat Sub Distress Signals 3 | . 3 . Communications Jammed . | . . . Distress Signals . | . . . Times Spotted 33 | . 30 3 Peak Tracking Total 5 | . 5 2 Tactical Retreats 2 | . 2 . Traps | -11 -10 -10 ------- Run | Yrd Mat Sub Traps Triggered 2 | . 2 . Indirectly . | . . . Trap Hack Attempts . | . . . Triggered . | . . . Disarmed . | . . . Reprogrammed . | . . . Reused . | . . . Traps Extracted . | . . . Installed . | . . . Triggered . | . . . Machines | -11 -10 -10 ---------- Run | Yrd Mat Sub Machines Disabled . | . . . Max in Single Turn . | . . . Machines Repaired . | . . . Machines Dismantled . | . . . Machines Sabotaged . | . . . Overloaded Fab Kills . | . . . Hacking | -11 -10 -10 --------- Run | Yrd Mat Sub Machines Accessed 1 | . 1 . Terminals 1 | . 1 . Fabricators . | . . . Repair Stations . | . . . Recycling Units . | . . . Scanalyzers . | . . . Garrison Access . | . . . Total Hacks 5 | . 5 . Successful 2 | . 2 . Failed 3 | . 3 . Catastrophic . | . . . Database Lockouts . | . . . Manual . | . . . Terminals 5 | . 5 . Fabricators . | . . . Repair Stations . | . . . Recycling Units . | . . . Scanalyzers . | . . . Garrison Access . | . . . Terminal Hacks 2 | . 2 . Dispatch Records 1 | . 1 . Zone Layout 1 | . 1 . Fabricator Hacks . | . . . Repair Station Hacks . | . . . Recycling Unit Hacks . | . . . Scanalyzer . | . . . Garrison Access Hacks . | . . . Unauthorized Hacks . | . . . Terminals . | . . . Fabricators . | . . . Repair Stations . | . . . Recycling Units . | . . . Scanalyzers . | . . . Garrison Access . | . . . Data Cores Recovered . | . . . Used . | . . . Hacking Detections . | . . . Full Trace Events . | . . . Feedback Events . | . . . Feedback Blocked . | . . . Robot Schematics Acquired . | . . . Robots Built . | . . . Authchips . | . . . Time . | . . . Total Robot Build Rating . | . . . Part Schematics Acquired . | . . . Parts Built . | . . . Authchips . | . . . Time . | . . . Total Part Build Rating . | . . . Parts Repaired . | . . . Time . | . . . Parts Recycled . | . . . Recycled Matter . | . . . Retrieved Matter . | . . . Retrieved Components . | . . . Parts Scanalyzed . | . . . Part Schematics Acquired . | . . . Parts Damaged . | . . . Bothacking | -11 -10 -10 ------------ Run | Yrd Mat Sub Used RIF Installer . | . . . Robots Hacked . | . . . Non-combat . | . . . Combat . | . . . Robot Hacks Applied . | . . . Relay Couplers Released . | . . . Fabnet Peak Effective % . | . . . Robots Rewired . | . . . Allies Hacked . | . . . Hacks Repelled . | . . . Allies | -11 -10 -10 -------- Run | Yrd Mat Sub Total Allies . | . . . Largest Group . | . . . Highest-Rated Group . | . . . Highest-Rated Ally . | . . . Total Orders . | . . . Ally Attacks . | . . . Total Damage . | . . . Kills . | . . . Allies Corrupted . | . . . Allies Melted . | . . . Intel | -11 -10 -10 ------- Run | Yrd Mat Sub Active Infowar (turns) 770 | . 597 173 Sensors 770 | . 597 173 Robot Analysis Total . | . . . Derelict Logs Recovered . | . . . Drone Launches . | . . . Drone Recoveries . | . . . Exploration | -11 -10 -10 ------------- Run | Yrd Mat Sub Turns Passed 1403 | 61 1152 190 Spaces Moved 734 | 41 592 101 Core 7 | 6 . 1 Treads 354 | . 254 100 Legs 373 | 35 338 . Wheels . | . . . Hover . | . . . Flight . | . . . Fastest Speed 50 | 50 120 160 Average Speed 139 | 118 137 160 Slowest Speed 200 | 150 160 200 Overloaded Moves . | . . . Propulsion Burnouts . | . . . Robots Hopped . | . . . Potential Cave-ins . | . . . Cave-ins Triggered . | . . . Exploration Rate (%) 27 | 4 69 8 Regions Visited 2 Branch Regions 1 Pre-discovered Areas . | . . . Known Exits Taken . | . . . Unknown Exits Taken 2 | 1 1 . Scrap Searched . | . . . Spaces Dug . | . . . Terrain Destroyed . | . . . Melee . | . . . Projectile . | . . . AOE . | . . . Terrain Rammed . | . . . Walls Destroyed . | . . . Machines Disabled . | . . . Actions | -11 -10 -10 --------- Run | Yrd Mat Sub Total 967 | 50 799 118 Wait 98 | . 98 . Move 732 | 40 591 101 Hop . | . . . Pick Up 11 | 4 7 . Fast Attach 14 | 6 8 . Attach 3 | . . 3 Detach 2 | . 1 1 Swap 7 | . 7 . Drop 10 | . 10 . Fire 85 | . 72 13 Melee . | . . . Ram . | . . . Kick 2 | . 2 . Crush 3 | . 3 . Escape Stasis . | . . . Rewire . | . . . Trap . | . . . Miscellaneous . | . . . Route ------- -11/Scrapyard -10/Materials (discovered 3 exits: [*Mat x2] / [*Sub]) -10/Subcaves History --------- Turn | Location | Event 8 | -11/Scrapyard | Discovered new exit (range 16) 62 | -11/Scrapyard | Entered Materials 300 | -10/Materials | Build established: Mutant 348 | -10/Materials | Discovered new exit (range 11) 590 | -10/Materials | Core integrity fell below 50% 679 | -10/Materials | Discovered new exit (range 13) 845 | -10/Materials | Discovered new exit (range 13) 1016 | -10/Materials | Core integrity fell below 20% 1214 | -10/Materials | Entered Subcaves 1215 | -10/Subcaves | Approached by a straggling Scientist 1404 | -10/Subcaves | Destroyed by 0D-MBG(R) with Subdweller Machine Gun Last Messages --------------- GOAL=ESCAPE YI-VLJ(c): "Thank the algorithms! I was beginning to lose hope I'd never make it past all the Subs lurking out here." YI-VLJ(c): "Hey, let me tag along and I can get us both out of this nasty situation. At least I think I can... The group I got separated from was talking about a shortcut back to the UFD." YI-VLJ(c): "I think it's somewhere east of here" DI-5O7(R) suffers critical hit (Burn). Disposable Heat Sink melted. DI-5O7(R) destroyed. Subatomizers dissect the Sub. Optics. YI-VLJ(c): "I think it's somewhere east of here" MX-N9B(R) suffers critical hit (Burn). Lgt. Treads destroyed. Med. Laser destroyed. MX-N9B(R) destroyed. Map ----- +----------------------------------------------------+ | ???????????# ## #?????###??????????????? | | ???????????# ??# ## #??????????????????????? | | ???????????# ???# ##??????????????????????? | | ???????????# ???## #???????????????????????? | | ??????????? #???## #???????????????????????? | | ???????????# #??### ##??????????????????????? | | ???????????# #??# #??????????????????????? | | ???????????# #??## #??????????????????????? | | ???????????# ???## #??????????????????????? | | ???????????# ????# ###??????????????????????? | | ??????????## #???## ##????????????????????????? | | ??????????# ##?## ##????????????????????????? | | ??????????# ### #????????????????????????? | | ??????????# #????????????????????????? | | ??????????## # # #????????????????????????? | | ???????????# ######### #????????????????????????? | | ?????????### #???????##????????????????????????? | | ????????## ##??????????????######?????????????? | | ???????## #???????????????# "" #""???????????? | | ???????# #?????????####### "" """???????????? | | ???????#### #?#####??## ## "" """???????????? | | ??????????# ### #### #""## ""??????????? | | ??????????# ## ## #???##??????????? | | ??????????# ## #???????????????? | | ??????????# ## ## ## ???????????????? | | ??????????## ###### &@##### ??????????????? | | ???????????# #????# R%##??? #?????????????? | | ???????????# ????# #???? ?????????????? | | ???????????## ????# #???? ????????????? | | ????????????# #???# ??? ???????????? | | ????????????# ???# ?? #??# ???????????? | | ???????????? ??# ????????????????????? | | ???????????? ??# ???????????????????? | | ????????????# #? ??????????????????? | | ????????????? ## ## ##?????????????????? | | ????????????? ?# #??????????????????? | | ????????????? #?# ##??????????????????? | | ????????????? ??# #???????????????????? | | ????????????? #??# ????????????????????? | | ????????????????? #????### ?????????????????????? | | ?????????????????????????? ?????????????????????? | | ?????????????????????????? ??????????????????????? | | ?????????????????????????????????????????????????? | | ?????????????????????????????????????????????????? | | ?????????????????????????????????????????????????? | | ?????????????????????????????????????????????????? | | ?????????????????????????????????????????????????? | | ?????????????????????????????????????????????????? | | ?????????????????????????????????????????????????? | | ?????????????????????????????????????????????????? | +----------------------------------------------------+ Best States ------------- Heat Dissipation 39 Energy Generation 10 Energy Capacity 250 Matter Stores 300 Matter Capacity 300 Sight Range 16 Robot Scan Range 14 Terrain Scan Density 10 Armor Coverage 150 Evasion (%) 55 Recoil Reduction 1 Item Schematics ----------------- None Robot Schematics ------------------ None Fabricated ------------ Nothing Repaired ---------- Nothing Alien Tech Used ----------------- None Achievements -------------- None Challenges ------------ None Game ------ Seed AccelerationMagneticInjector Manual? 0 Play Time 00:14:52 Cumulative 13.2 hours Start 2025.07.28 @ 15:16:22 End 2025.07.28 @ 18:38:40 Sessions 1 Manual Loads 0 Difficulty Rogue Special Mode None Game No. 22 Rogue 13 Adventurer 9 Explorer 0 Win Type - Total 0 Types 0/0/0/0/0/0/0/0/0/0 Lore% 9 Gallery% 20 Achievement% 17 Wizard Run 0 Options --------- Layout 1 ASCII 0 Keyboard 0 Movement Numpad Keybinds 0 Fullscreen 1 Font 24/Smallcaps Map View 50x35 Zoom Use 0% Tactical HUD 0 Map Filters NONE Filters NONE Steam 1 RUN: b11af190-a447-460b-8c27-7b25dcc39fb8